Cogmind - Beta 15 @@@ ROGUE MODE // 2025.06.13 @ 17:21:46 // Winter2019/RPGLIKE Player: Jack Result: Self-destructed Performance ------------- Evolutions (3) 1500 Regions Visited (5) 1000 Robots Destroyed (29) 145 Value Destroyed (807) 807 Prototype IDs (3) 60 Alien Tech Used (0) 0 Bonus (200) 200 TOTAL SCORE: 3712 Bonus ------- Pacifist 200 Cogmind --------- Core Integrity 331/600 Matter 300/300 Energy 250/250 System Corruption 0% Temperature Cool (58) Movement Flying (91) Location -7/Factory Parts ------- > --- POWER (1) -------- Ion Engine > --- PROPULSION (2) --- Flying Exoskeleton > --- UTILITY (2) ------ Scrap Engine > --- WEAPON (4) ------- Rapid Ballistic Assault Construct/G > --- INVENTORY (0) ---- (None) Peak State ------------ > --- POWER ------------ Ion Engine > --- PROPULSION ------- Flight Unit Flight Unit > --- UTILITY ---------- Scrap Engine > --- WEAPON ----------- Light Assault Rifle Light Assault Rifle Light Assault Rifle Light Assault Rifle > --- INVENTORY -------- (None) [Rating: 25] Favorites ----------- Power Ion Engine Engine Ion Engine Propulsion Flight Unit Flight Unit Flight Unit Utility Scrap Engine Device Scrap Engine Weapon Light Assault Rifle Energy Gun Medium Laser Ballistic Gun Light Assault Rifle Build | -11 -10 -9 -9 -9 -7 ------- Run | Yrd Mat Mat Sto Rec Fac Slots Evolved 5 | 4 . . . 1 . Power . | . . . . . . Propulsion 1 | 1 . . . . . Utility 1 | . . . . 1 . Weapon 3 | 3 . . . . . Parts Attached 11 | 2 2 . 6 1 . Power 1 | . . . 1 . . Engine 1 | . . . 1 . . Core . | . . . . . . Reactor . | . . . . . . Propulsion 3 | . 1 . 2 . . Treads . | . . . . . . Leg . | . . . . . . Wheel . | . . . . . . Hover . | . . . . . . Flight 3 | . 1 . 2 . . Utility 1 | . . . . 1 . Device 1 | . . . . 1 . Storage . | . . . . . . Processor . | . . . . . . Hackware . | . . . . . . Protection . | . . . . . . Artifact . | . . . . . . Weapon 6 | 2 1 . 3 . . Energy Gun 2 | 2 . . . . . Energy Cannon . | . . . . . . Ballistic Gun 4 | . 1 . 3 . . Ballistic Cannon . | . . . . . . Launcher . | . . . . . . Special Weapon . | . . . . . . Impact Weapon . | . . . . . . Slashing Weapon . | . . . . . . Piercing Weapon . | . . . . . . Special Melee Weapon . | . . . . . . Unidentified Prototypes 1 | . . . . 1 . Parts Lost . | . . . . . . Power . | . . . . . . Propulsion . | . . . . . . Utility . | . . . . . . Weapon . | . . . . . . Highest Loss Streak . | . . . . . . To Critical Strikes . | . . . . . . Average Backups . | . . . . . . Power . | . . . . . . Propulsion . | . . . . . . Utility . | . . . . . . Weapon . | . . . . . . Tool/Special . | . . . . . . Unused Backups . | . . . . . . Power . | . . . . . . Propulsion . | . . . . . . Utility . | . . . . . . Weapon . | . . . . . . Tool/Special . | . . . . . . Average Slot Usage (%) 55 | . 33 50 72 53 44 Engine 8 | . . . 6 11 11 Flight 14 | . . 12 21 13 11 Device 6 | . . . . 9 11 Energy Gun 5 | . 25 25 9 . . Ballistic Gun 20 | . 8 12 34 19 11 Peak Build Rating 25 | 2 4 4 7 25 25 Average Rating 16 | 1 2 4 5 22 25 On Entrance 7 | . 2 4 4 7 25 Naked Turns . | . . . . . . Heaviest Build 10 | 3 4 4 9 10 6 Greatest Support 19 | 8 9 9 13 19 19 Greatest Overweight (x) 1 | . . . . 1 . Average Overweight (x) . | . . . . . . Largest Inventory Capacity . | . . . . . . Average Capacity . | . . . . . . Most Carried . | . . . . . . Average Carried . | . . . . . . Final Capacity . | . . . . . . Final Carried . | . . . . . . Scrap Engine Consumption 13 | . . . . 13 . Constructs Created 2 | . . . . 2 . Constructs Modified 4 | . . . . 4 . Class Distribution -------------------- 40% | Construct 30% | Scavenger-Gunner 20% | Gunner 9% | Mutant Dominant Class ---------------- Gunner | -10/Materials Gunner | -9/Materials Scavenger-Gunner | -9/Storage Construct | -9/Recycling Construct | -7/Factory Resources | -11 -10 -9 -9 -9 -7 ----------- Run | Yrd Mat Mat Sto Rec Fac Matter Collected 544 | 220 . . 183 141 . Remotely . | . . . . . . Salvage Created 855 | . . . 454 401 . Parts 68 | . . 2 38 28 . Haulers Intercepted . | . . . . . . Recyclers Shooed 1 | . . . . 1 . Parts Field Recycled . | . . . . . . Retrieved Matter . | . . . . . . Parts Self-Destructed . | . . . . . . Prevented . | . . . . . . Kills | -11 -10 -9 -9 -9 -7 ------- Run | Yrd Mat Mat Sto Rec Fac Combat Hostiles Destroyed 25 | . . 1 16 8 . Guns 25 | . . 1 16 8 . Classes Destroyed 7 | . . 1 3 3 . Recycler 3 | . . . 1 2 . Swarmer 7 | . . . 7 . . Grunt 7 | . . . 5 2 . Brawler 1 | . . . . 1 . Protector 1 | . . . . 1 . Sentry 9 | . . 1 4 4 . Programmer 1 | . . . . 1 . Best Kill Streak 6 | . . 1 6 2 . Combat Bots Only 5 | . . 1 5 2 . Max Kills in Single Turn 1 | . . 1 1 1 . Gunslinging . | . . . . . . Exploded . | . . . . . . Melee . | . . . . . . Uniques/NPCs Destroyed . | . . . . . . Combat | -11 -10 -9 -9 -9 -7 -------- Run | Yrd Mat Mat Sto Rec Fac Hostile Shots Fired 202 | . 3 8 87 42 62 Missed 88 | . 3 5 36 15 29 Hits 114 | . . 3 51 27 33 Projectile 114 | . . 3 51 27 33 AOE 2 | . . . . 2 . Critical Strikes 2 | . . . . 2 . Damage Taken 1441 | . 13 36 591 480 321 Core 1193 | . 10 34 486 394 269 Absorbed by Shields . | . . . . . . Redirected to Core 826 | . 10 4 355 292 165 Core Remaining (%) 99 | 100 98 . . 100 . Volleys Fired 101 | . . 3 36 54 8 Largest 4 | . . 3 4 4 1 Hottest 130 | . . 110 130 80 34 Shots Fired 247 | . . 9 128 102 8 Gun 247 | . . 9 128 102 8 Cannon . | . . . . . . Launcher . | . . . . . . Special . | . . . . . . Kinetic 221 | . . 3 108 102 8 Thermal 26 | . . 6 20 . . Explosive . | . . . . . . Electromagnetic . | . . . . . . Robot Hit Streak 21 | . . 8 19 21 9 Robot Miss Streak 4 | . . . 4 2 . Penetration Max . | . . . . . . Secondary Targets 6 | . . . 4 2 . Max Gunslinging Chain 1 | . . . 1 1 . Shots Hit Robots 145 | . . 8 68 61 8 Core Hits 67 | . . 3 33 29 2 Critical Kills 1 | . . . 1 . . Critical Parts Destroyed . | . . . . . . Critical Strikes 3 | . . 1 2 . . Burn 2 | . . 1 1 . . Destroy 1 | . . . 1 . . Melee Attacks . | . . . . . . Impact . | . . . . . . Slashing . | . . . . . . Piercing . | . . . . . . Sneak Attacks . | . . . . . . Combat Hostiles . | . . . . . . Follow-up Attacks . | . . . . . . Damage Inflicted 1349 | . . 88 608 552 101 Guns 1349 | . . 88 608 552 101 Cannons . | . . . . . . Explosions . | . . . . . . Melee . | . . . . . . Ramming . | . . . . . . Kinetic 1161 | . . 14 494 552 101 Thermal 188 | . . 74 114 . . Explosive . | . . . . . . Electromagnetic . | . . . . . . Impact . | . . . . . . Slashing . | . . . . . . Piercing . | . . . . . . Highest Corruption 1 | . . . . 1 . Average Corruption 1 | . . . . 1 . Corruption Purged . | . . . . . . Corruption Blocked . | . . . . . . Effects 9 | . . . . 9 . Message Errors 3 | . . . . 3 . Matter Fused 4 | . . . . 4 . Heat Flow Errors 1 | . . . . 1 . Data Loss (minor) 1 | . . . . 1 . Overload Shots . | . . . . . . Overflow Damage . | . . . . . . Projectiles . | . . . . . . Explosions . | . . . . . . Melee . | . . . . . . Knockbacks . | . . . . . . Impact . | . . . . . . Kinetic . | . . . . . . Secondary . | . . . . . . Self-Inflicted Damage . | . . . . . . Shots . | . . . . . . Rammed . | . . . . . . Targets Rammed . | . . . . . . Kicked . | . . . . . . Crushed . | . . . . . . Highest Temperature 345 | . . 108 345 190 78 Average Temperature 90 | . . 57 131 44 52 Received Heat Transfer 342 | . . 9 150 117 66 Effects 6 | . . . 6 . . Interference 6 | . . . 6 . . Siege Activations . | . . . . . . Martial Activations . | . . . . . . Shielding Activations . | . . . . . . Robots Disrupted . | . . . . . . Combat Hostiles . | . . . . . . Robots Corrupted . | . . . . . . Combat Hostiles . | . . . . . . Parts Fried . | . . . . . . Impact Corruptions . | . . . . . . Robots Melted . | . . . . . . Combat Hostiles . | . . . . . . Parts Melted 4 | . . 2 2 . . Heat Transferred 632 | . . 260 372 . . Parts Sabotaged . | . . . . . . Parts Stolen . | . . . . . . Parts Stripped . | . . . . . . Power Chain Reactions . | . . . . . . Alert | -11 -10 -9 -9 -9 -7 ------- Run | Yrd Mat Mat Sto Rec Fac Maximum Alert Level 1 | . . . 1 . . Low Security (%) 91 | 100 100 100 54 100 100 Level 1 8 | . . . 46 . . Level 2 . | . . . . . . Level 3 . | . . . . . . Level 4 . | . . . . . . Level 5 . | . . . . . . High Security . | . . . . . . Max Security . | . . . . . . Peak Influence 376 | . . 50 376 187 . Initial 142 | . . . 20 142 . Average 77 | . . 11 182 67 . Influence Increases 741 | . . 90 496 155 . Destroy 0b10 Robot/C 480 | . . 20 320 140 . Destroy 0b10 Robot/NC 20 | . . . 5 15 . Destroy Leader 70 | . . 10 60 . . Successful Hack 19 | . . . 19 . . Destroy Structure 2 | . . . 2 . . Lose Combat Pursuer 150 | . . 60 90 . . Influence Decreases 741 | . . 40 180 521 . Entered New Map 254 | . . . 30 224 . Time Decay 487 | . . 40 150 297 . Squads Dispatched 2 | . 1 . . . 1 Investigation 1 | . 1 . . . . Extermination . | . . . . . . Reinforcement . | . . . . . . Assault . | . . . . . . Garrison 1 | . . . . . 1 Intercept . | . . . . . . Searches Triggered . | . . . . . . Construction Impeded . | . . . . . . Haulers Reinforced . | . . . . . . Active Scanning Responses . | . . . . . . Cargo Convoy Interrupts . | . . . . . . Stealth | -11 -10 -9 -9 -9 -7 --------- Run | Yrd Mat Mat Sto Rec Fac Distress Signals 7 | . . 1 6 . . Communications Jammed . | . . . . . . Distress Signals . | . . . . . . Times Spotted 54 | . 4 4 24 15 7 Peak Tracking Total 11 | . 4 5 11 5 6 Tactical Retreats 6 | . . 2 3 1 . Traps | -11 -10 -9 -9 -9 -7 ------- Run | Yrd Mat Mat Sto Rec Fac Traps Triggered 2 | . 2 . . . . Indirectly . | . . . . . . Trap Hack Attempts . | . . . . . . Triggered . | . . . . . . Disarmed . | . . . . . . Reprogrammed . | . . . . . . Reused . | . . . . . . Traps Extracted . | . . . . . . Installed . | . . . . . . Triggered . | . . . . . . Machines | -11 -10 -9 -9 -9 -7 ---------- Run | Yrd Mat Mat Sto Rec Fac Machines Disabled . | . . . . . . Max in Single Turn . | . . . . . . Machines Repaired . | . . . . . . Machines Dismantled . | . . . . . . Machines Sabotaged . | . . . . . . Overloaded Fab Kills . | . . . . . . Hacking | -11 -10 -9 -9 -9 -7 --------- Run | Yrd Mat Mat Sto Rec Fac Machines Accessed 5 | . . 1 3 1 . Terminals 4 | . . 1 3 . . Fabricators . | . . . . . . Repair Stations . | . . . . . . Recycling Units . | . . . . . . Scanalyzers . | . . . . . . Garrison Access . | . . . . . . Total Hacks 12 | . . 1 4 7 . Successful 10 | . . . 3 7 . Failed 2 | . . 1 1 . . Catastrophic 1 | . . 1 . . . Database Lockouts . | . . . . . . Manual 5 | . . 1 4 . . Terminals 5 | . . 1 4 . . Fabricators . | . . . . . . Repair Stations . | . . . . . . Recycling Units . | . . . . . . Scanalyzers . | . . . . . . Garrison Access . | . . . . . . Terminal Hacks 10 | . . . 3 7 . Record 5 | . . . . 5 . Open Door 1 | . . . 1 . . Branch Access Points 1 | . . . 1 . . Registered Components 1 | . . . 1 . . Release Object 2 | . . . . 2 . Fabricator Hacks . | . . . . . . Repair Station Hacks . | . . . . . . Recycling Unit Hacks . | . . . . . . Scanalyzer . | . . . . . . Garrison Access Hacks . | . . . . . . Unauthorized Hacks . | . . . . . . Terminals . | . . . . . . Fabricators . | . . . . . . Repair Stations . | . . . . . . Recycling Units . | . . . . . . Scanalyzers . | . . . . . . Garrison Access . | . . . . . . Data Cores Recovered . | . . . . . . Used . | . . . . . . Hacking Detections 2 | . . . 2 . . Full Trace Events . | . . . . . . Feedback Events . | . . . . . . Feedback Blocked . | . . . . . . Robot Schematics Acquired . | . . . . . . Robots Built . | . . . . . . Authchips . | . . . . . . Time . | . . . . . . Total Robot Build Rating . | . . . . . . Part Schematics Acquired . | . . . . . . Parts Built . | . . . . . . Authchips . | . . . . . . Time . | . . . . . . Total Part Build Rating . | . . . . . . Parts Repaired . | . . . . . . Time . | . . . . . . Parts Recycled . | . . . . . . Recycled Matter . | . . . . . . Retrieved Matter . | . . . . . . Retrieved Components . | . . . . . . Parts Scanalyzed . | . . . . . . Part Schematics Acquired . | . . . . . . Parts Damaged . | . . . . . . Bothacking | -11 -10 -9 -9 -9 -7 ------------ Run | Yrd Mat Mat Sto Rec Fac Used RIF Installer . | . . . . . . Robots Hacked . | . . . . . . Non-combat . | . . . . . . Combat . | . . . . . . Robot Hacks Applied . | . . . . . . Relay Couplers Released . | . . . . . . Fabnet Peak Effective % . | . . . . . . Robots Rewired 1 | . . . . 1 . Allies Hacked . | . . . . . . Hacks Repelled . | . . . . . . Allies | -11 -10 -9 -9 -9 -7 -------- Run | Yrd Mat Mat Sto Rec Fac Total Allies 1 | . . . . 1 . Largest Group 1 | . . . . 1 . Highest-Rated Group 15 | . . . . 15 . Highest-Rated Ally 15 | . . . . 15 . Total Orders . | . . . . . . Ally Attacks . | . . . . . . Total Damage . | . . . . . . Kills . | . . . . . . Allies Corrupted . | . . . . . . Allies Melted . | . . . . . . Intel | -11 -10 -9 -9 -9 -7 ------- Run | Yrd Mat Mat Sto Rec Fac Active Infowar (turns) . | . . . . . . Robot Analysis Total . | . . . . . . Derelict Logs Recovered . | . . . . . . Drone Launches . | . . . . . . Drone Recoveries . | . . . . . . Exploration | -11 -10 -9 -9 -9 -7 ------------- Run | Yrd Mat Mat Sto Rec Fac Turns Passed 1580 | 21 64 133 300 978 84 Spaces Moved 1730 | 35 124 303 299 893 76 Core 351 | 35 113 . . 203 . Treads . | . . . . . . Legs . | . . . . . . Wheels . | . . . . . . Hover . | . . . . . . Flight 1379 | . 11 303 299 690 76 Fastest Speed 37 | 50 40 40 37 37 91 Average Speed 52 | 50 49 40 38 59 91 Slowest Speed 100 | 50 50 40 40 100 91 Overloaded Moves . | . . . . . . Propulsion Burnouts . | . . . . . . Robots Hopped 21 | . . 1 14 6 . Potential Cave-ins . | . . . . . . Cave-ins Triggered . | . . . . . . Exploration Rate (%) 33 | 4 28 25 43 97 3 Regions Visited 5 Branch Regions 2 Pre-discovered Areas . | . . . . . . Known Exits Taken 1 | . . . 1 . . Unknown Exits Taken 4 | 1 1 1 . 1 . Scrap Searched . | . . . . . . Spaces Dug . | . . . . . . Terrain Destroyed . | . . . . . . Melee . | . . . . . . Projectile . | . . . . . . AOE . | . . . . . . Terrain Rammed . | . . . . . . Walls Destroyed . | . . . . . . Machines Disabled . | . . . . . . Actions | -11 -10 -9 -9 -9 -7 --------- Run | Yrd Mat Mat Sto Rec Fac Total 2237 | 36 125 307 406 1279 84 Wait 343 | . . . 48 295 . Move 1685 | 34 123 300 270 882 76 Hop 19 | . . 1 14 4 . Pick Up . | . . . . . . Fast Attach 10 | 2 2 . 5 1 . Attach . | . . . . . . Detach . | . . . . . . Swap 1 | . . . 1 . . Drop 9 | . . . 3 6 . Fire 101 | . . 3 36 54 8 Melee . | . . . . . . Ram . | . . . . . . Kick . | . . . . . . Crush . | . . . . . . Escape Stasis . | . . . . . . Rewire 14 | . . . . 14 . Trap . | . . . . . . Miscellaneous 55 | . . 3 29 23 . Route ------- -11/Scrapyard -10/Materials -9/Materials -9/Storage -9/Recycling -7/Factory (discovered 1 exit: [*Fac]) History --------- Turn | Location | Event 3 | -11/Scrapyard | Discovered new exit (range 15) 8 | -11/Scrapyard | Upgraded with Propulsion slot (x1) 8 | -11/Scrapyard | Upgraded with Weapon slot (x3) 22 | -11/Scrapyard | Entered Materials 72 | -10/Materials | Discovered new exit (range 13) 86 | -10/Materials | Entered another Materials area 88 | -9/Materials | Reached level 2 125 | -9/Materials | Discovered new exit (range 3) 219 | -9/Materials | Entered Storage 254 | -9/Storage | Identified exit to Recycling 278 | -9/Storage | Reached level 3 305 | -9/Storage | Build established: Gunner 497 | -9/Storage | Reached level 4 518 | -9/Storage | Used back door to open Recycling access 519 | -9/Storage | Entered Recycling 574 | -9/Recycling | Reached level 5 609 | -9/Recycling | Scanned before Scraplab entrance 615 | -9/Recycling | Entered Scraplab 616 | -9/Recycling | Angered Scraplab inhabitants 616 | -9/Recycling | Upgraded with Utility slot (x1) 616 | -9/Recycling | Found Prototype Device 616 | -9/Recycling | Identified Scrap Engine 637 | -9/Recycling | Build established: Scavenger-Gunner 1240 | -9/Recycling | Build established: Construct 1325 | -9/Recycling | Discovered new exit (range 12) 1497 | -9/Recycling | Entered Factory 1499 | -7/Factory | Reached level 6 1564 | -7/Factory | Discovered new exit (range 16) 1574 | -7/Factory | Garrison activated, responded to threat 1581 | -7/Factory | Self-destructed Last Messages --------------- P:A8ZEZ ZJK 7AWD8 |E1U Scrap Engine modifies Cycling Kinetic Assault Construct/G: Shot Heat +13, Min Damage -1, Max Damage +3, Energy Cost -1 Renamed Rapid Ballistic Assault Construct/G. System corrupted: Heat flow error (+135). LOCATION=UNKNOWN GOAL=ESCAPE Upgraded: Ranged Accuracy (+30) Reached level 6. EXIT=FOUND K-01 Serf cleans the Fusion Modulator. ALERT: All DSF locations entering lockdown mode. T-07 Excavator destroyed. K-01 Serf collects debris. Y-54 Guardian calls for garrison reinforcements. ALERT: Activating Garrison Access F002. K-01 Serf collects debris. C-30 ARC bursts open, deploying its payload. S-27 Virus unfolds itself. K-01 Serf collects debris. Map ----- +----------------------------------------------------+ | ??????????????????????????????????????? | | ??????????????????????????????????????? | | ??????????????????????????????????????? | | ??????????????????????????????????????? | | ??????????????????????????????????????? | | ??????????????????????????????????????? | | ??????????????????????????????????????? | | ??????????????????????????????????????? | | ??????????????????????????????????????? | | ??????????????????????????????????????? | | ??????????????????????????????????????? | | ??????????????????????????????????????? | | ??????????????????????????????????????? | | ?????????#######??????????????????????? | | ???????"?# ??????????????????????? | | ???????? # ??????????????????????? | | ???????? # ??????????????????????? | | ?????????+ [ ??????????????????????? | | ?????????# ??????????????????????? | | ?????????? ??????????????????????? | | ??????????? sY k??????????????????????? | | ???????????# s%#??????????????????????? | | ???????????# ss#??????????????????????? | | ???????????# #??????????????????????? | | ???????????#| #??????????????????????? | | ??????????##% @############???????????? | | ??#######?#!= = #???????????? | | ??# #?# #???????????? | | ??# #?#" === """ """